[Event "VII Sunway Sitges Open 2020"]
[Site "Sitges"]
[Date "2020.12.13"]
[Round "1.25"]
[White "Asis Gargatagli, Hipolito"]
[Black "Maloberti, David"]
[Result "1-0"]
[ECO "C18"]
[WhiteElo "2470"]
[BlackElo "2076"]
[Annotator "ChessBase"]
[PlyCount "46"]
[EventDate "2020.12.13"]
[EventType "swiss"]
[EventCountry "ESP"]
[SourceTitle "playchess.com"]
[Source "ChessBase"]
[SourceQuality "1"]
[TimeControl "40/5400+30:1800+30"]

1. e4 {[%emt 0:00:00]} e6 {[%emt 0:00:00]} 2. d4 {[%emt 0:00:00]} d5 {[%emt 0:00:00]} 3. Nc3 {[%emt 0:00:04]} Bb4 {[%emt 0:00:00]} 4. e5 {[%emt 0:00:15]} c5 {[%emt 0:00:00]} 5. a3 {[%emt 0:00:13]} Bxc3+ {[%emt 0:00:07]} 6. bxc3 {[%emt 0:00:05]} Qa5 {[%emt 0:00:43]} 7. Bd2 {[%emt 0:00:23]} Qa4 {[%emt 0:00:06]} 8. Qg4 {[%emt 0:01:18]} Kf8 {[%emt 0:00:24]} 9. h4 {[%emt 0:01:31]} Nc6 {[%emt 0:01:12]} 10. h5 {[%emt 0:08:14]} h6 {[%emt 0:00:08]} 11. Qd1 {[%emt 0:00:50]} b6 {[%emt 0:05:25]} 12. Nf3 {[%emt 0:04:58]} Ba6 {[%emt 0:00:42]} 13. Bxa6 {[%emt 0:03:40]} Qxa6 {[%emt 0:00:09]} 14. dxc5 {[%emt 0:00:07]} bxc5 {[%emt 0:00:10]} 15. Qe2 {[%emt 0:00:13]} Qb6 {[%emt 0:04:49]} 16. O-O {[%emt 0:08:17]} Rb8 {[%emt 0:00:11]} 17. c4 {[%emt 0:02:37]} Nge7 {[%emt 0:01:00]} 18. cxd5 {[%emt 0:02:05]} exd5 {[%emt 0:01:59]} 19. e6 {[%emt 0:01:48]} f5 {[%emt 0:03:12]} 20. Ne5 {[%emt 0:07:19]} Qb5 {[%emt 0:00:30]} 21. Nd7+ {[%emt 0:05:24]} Kg8 {[%emt 0:04:23]} 22. c4 {[%emt 0:00:15]} Nd4 {[%emt 0:02:10]} 23. Qe5 {[%emt 0:03:02]} Qb2 {[%emt 0:02:10]} 1-0

[Event "VII Sunway Sitges Open 2020"]
[Site "Sitges"]
[Date "2020.12.13"]
[Round "1.29"]
[White "Sismeiro, Miguel"]
[Black "Svoboda, Vaclav"]
[Result "0-1"]
[ECO "B32"]
[WhiteElo "2035"]
[BlackElo "2407"]
[Annotator "ChessBase"]
[PlyCount "68"]
[EventDate "2020.12.13"]
[EventType "swiss"]
[EventCountry "ESP"]
[SourceTitle "playchess.com"]
[Source "ChessBase"]
[SourceQuality "1"]
[TimeControl "40/5400+30:1800+30"]

1. e4 c5 2. Nf3 {[%emt 0:00:00]} Nc6 {[%emt 0:12:47]} 3. d4 {[%emt 0:00:00]} cxd4 {[%emt 0:00:00]} 4. Nxd4 {[%emt 0:00:42]} Qc7 {[%emt 0:00:27]} 5. c4 {[%emt 0:00:08]} Nf6 {[%emt 0:01:16]} 6. Nc3 Nxe4 {[%emt 0:00:04]} 7. Nxe4 {[%emt 0:09:32]} Qe5 8. Nxc6 {[%emt 0:00:21]} Qxe4+ {[%emt 0:00:34]} 9. Be2 {[%emt 0:00:15]} Qxc6 {[%emt 0:03:56]} 10. O-O {[%emt 0:06:33]} e6 {[%emt 0:03:13]} 11. Qd4 {[%emt 0:03:09]} d6 {[%emt 0:00:28]} 12. Bf3 {[%emt 0:12:51]} Qc7 {[%emt 0:02:53]} 13. Bg5 {[%emt 0:02:20]} h6 {[%emt 0:07:58]} 14. Be3 {[%emt 0:08:35]} Bd7 {[%emt 0:02:47]} 15. b4 {[%emt 0:01:31]} Bc6 {[%emt 0:08:01]} 16. Be2 {[%emt 0:06:17]} e5 {[%emt 0:08:25]} 17. Qg4 {[%emt 0:05:08]} g6 {[%emt 0:06:19]} 18. f4 {[%emt 0:08:27]} h5 {[%emt 0:05:58]} 19. Qh3 {[%emt 0:13:04]} f5 {[%emt 0:00:22]} 20. b5 {[%emt 0:05:25]} Be4 21. Bf3 {[%emt 0:00:11]} Bxf3 {[%emt 0:00:53]} 22. Qxf3 {[%emt 0:03:54]} e4 {[%emt 0:10:07]} 23. Qd1 {[%emt 0:00:04]} Bg7 {[%emt 0:01:40]} 24. Rc1 {[%emt 0:00:04]} O-O {[%emt 0:01:35]} 25. c5 {[%emt 0:00:10]} dxc5 {[%emt 0:01:30]} 26. Rxc5 {[%emt 0:01:44]} Qf7 {[%emt 0:02:26]} 27. Qa4 {[%emt 0:04:13]} Rfd8 {[%emt 0:00:58]} 28. Rfc1 Rd7 {[%emt 0:00:04]} 29. Rc8+ {[%emt 0:03:58]} Rxc8 {[%emt 0:00:30]} 30. Rxc8+ {[%emt 0:00:30]} Kh7 {[%emt 0:03:27]} 31. Qxa7 {[%emt 0:00:00]} Rd1+ {[%emt 0:02:05]} 32. Kf2 Ra1 {[%emt 0:00:23]} 33. Rc2 {[%emt 0:02:28]} Qd5 {[%emt 0:01:37]} 34. Kg3 Qxb5 0-1

[Event "VII Sunway Sitges Open 2020"]
[Site "Sitges"]
[Date "2020.12.14"]
[Round "2.12"]
[White "Krysa, Leandro"]
[Black "Garcia Ramos, Daniel"]
[Result "1-0"]
[ECO "D43"]
[WhiteElo "2531"]
[BlackElo "2380"]
[Annotator "RC"]
[PlyCount "69"]
[EventDate "2020.12.13"]
[EventType "swiss"]
[EventCountry "ESP"]
[SourceTitle "playchess.com"]
[Source "ChessBase"]
[SourceQuality "1"]
[TimeControl "40/5400+30:1800+30"]

1. Nf3 {[%emt 0:00:00]} Nf6 {[%emt 0:00:42]} 2. c4 {[%emt 0:00:21]} c6 {[%emt 0:00:37]} 3. Nc3 {[%emt 0:00:22]} d5 {[%emt 0:00:17]} 4. d4 {[%emt 0:00:10]} e6 {[%emt 0:00:15]} 5. Bg5 {[%emt 0:00:20]} h6 {[%emt 0:00:52]} 6. Bxf6 {[%emt 0:00:08]} Qxf6 {[%emt 0:00:06]} 7. Qb3 {[%emt 0:00:05]} Nd7 {[%emt 0:03:53]} 8. e4 {[%emt 0:00:14]} dxe4 {[%emt 0:03:46]} 9. Nxe4 {[%emt 0:00:09]} Qf4 {[%emt 0:02:26]} 10. Bd3 {[%emt 0:01:05]} e5 {[%emt 0:17:24]} 11. O-O {[%emt 0:00:46]} Be7 {[%emt 0:00:51]} 12. Rae1 {[%emt 0:13:06]} exd4 {[%emt 0:03:47]} 13. Bb1 {[%emt 0:08:39]} O-O {[%emt 0:20:46]} 14. Ng3 {[%emt 0:17:51]} Nc5 {[%emt 0:06:55]} 15. Qc2 {[%emt 0:20:48]} d3 {[%emt 0:00:39]} 16. Qd1 {[%emt 0:00:32]} Bg5 17. b4 {[%emt 0:15:21]} d2 {[%emt 0:19:11]} 18. Re3 {[%emt 0:02:04]} Ne6 {[%emt 0:05:57]} 19. Qc2 {[%emt 0:03:48]} Rd8 {[%emt 0:02:44]} 20. Qh7+ {[%emt 0:03:05]} Kf8 {[%emt 0:00:06]} 21. Rd1 {[%emt 0:02:29]} g6 {[%emt 0:04:22]} 22. Nxg5 {[%emt 0:06:05]} Qxg5 {[%emt 0:01:30]} 23. Rf3 {[%emt 0:01:16]} Nf4 {[%emt 0:00:36]} 24. h4 {[%emt 0:01:08]} Qxh4 {[%emt 0:01:49]} 25. Qh8+ {[%emt 0:01:33]} Ke7 {[%emt 0:00:05]} 26. Qe5+ {[%emt 0:00:20]} Ne6 {[%emt 0:00:07]} 27. Ne4 {[%emt 0:00:37]} f5 {[%emt 0:03:11]} 28. g3 {[%emt 0:00:23]} Qg4 {[%emt 0:00:05]} 29. Qf6+ {[%emt 0:00:41]} Ke8 {[%emt 0:00:04]} 30. Rxd2 {[%emt 0:01:00]} Qxf3 {[%emt 0:01:21]} 31. Qxg6+ {[%emt 0:00:11]} Ke7 {[%emt 0:00:12]} 32. Qf6+ {[%emt 0:00:32]} Ke8 {[%emt 0:00:05]} 33. Rxd8+ {[%emt 0:00:23]} Nxd8 {[%emt 0:00:05]} 34. Nd6+ {[%emt 0:00:04]} Kd7 {[%emt 0:00:09]} 35. Bxf5+ {[%emt 0:00:12]} 1-0

[Event "VII Sunway Sitges Open 2020"]
[Site "Sitges"]
[Date "2020.12.14"]
[Round "2.18"]
[White "Flom, Gabriel"]
[Black "Toncheva, Nadya"]
[Result "1/2-1/2"]
[ECO "D20"]
[WhiteElo "2499"]
[BlackElo "2321"]
[Annotator "RC"]
[PlyCount "150"]
[EventDate "2020.12.13"]
[EventType "swiss"]
[EventCountry "ESP"]
[SourceTitle "playchess.com"]
[Source "ChessBase"]
[SourceQuality "1"]
[TimeControl "40/5400+30:1800+30"]

1. d4 {[%emt 0:08:32]} d5 {[%emt 0:00:00]} 2. c4 {[%emt 0:00:05]} dxc4 {[%emt 0:00:00]} 3. e4 {[%emt 0:00:04]} e5 {[%emt 0:00:00]} 4. Nf3 {[%emt 0:00:39]} Bb4+ {[%emt 0:00:00]} 5. Bd2 {[%emt 0:02:13]} Bxd2+ {[%emt 0:00:09]} 6. Qxd2 {[%emt 0:00:03]} exd4 {[%emt 0:00:07]} 7. Nxd4 {[%emt 0:00:22]} Ne7 {[%emt 0:00:18]} 8. Nc3 {[%emt 0:01:18]} O-O {[%emt 0:03:45]} 9. Bxc4 {[%emt 0:01:22]} c5 {[%emt 0:01:31]} 10. Ndb5 {[%emt 0:00:30]} Qxd2+ {[%emt 0:01:19]} 11. Kxd2 {[%emt 0:00:02]} Nbc6 {[%emt 0:00:13]} 12. Ke3 {[%emt 0:02:57]} a6 {[%emt 0:08:55]} 13. Nc7 {[%emt 0:00:09]} Rb8 {[%emt 0:00:05]} 14. Rac1 {[%emt 0:00:43]} b5 {[%emt 0:02:04]} 15. Be2 {[%emt 0:00:02]} Bb7 {[%emt 0:08:14]} 16. N3d5 {[%emt 0:05:14]} c4 {[%emt 0:02:29]} 17. b3 {[%emt 0:02:28]} cxb3 {[%emt 0:00:20]} 18. axb3 {[%emt 0:00:03]} Nxd5+ {[%emt 0:08:02]} 19. Nxd5 {[%emt 0:08:10]} Rfe8 {[%emt 0:01:53]} 20. Nc7 {[%emt 0:03:21]} Re7 {[%emt 0:02:50]} 21. Nd5 {[%emt 0:00:49]} Ree8 {[%emt 0:01:57]} 22. Rhd1 {[%emt 0:00:56]} Ne7 {[%emt 0:01:43]} 23. Nxe7+ {[%emt 0:01:13]} Rxe7 {[%emt 0:00:05]} 24. f3 {[%emt 0:00:22]} Rbe8 {[%emt 0:12:52]} 25. Rd4 {[%emt 0:00:06]} f5 {[%emt 0:00:05]} 26. Rc5 {[%emt 0:00:20]} fxe4 {[%emt 0:01:07]} 27. f4 {[%emt 0:00:01]} g6 {[%emt 0:04:28]} 28. h4 {[%emt 0:00:56]} Kg7 {[%emt 0:00:15]} 29. g3 {[%emt 0:00:15]} Rf8 {[%emt 0:03:44]} 30. Bg4 {[%emt 0:08:17]} Rf6 {[%emt 0:07:42]} 31. b4 {[%emt 0:02:11]} Bc6 {[%emt 0:00:43]} 32. Rd8 {[%emt 0:00:52]} Be8 {[%emt 0:06:19]} 33. Re5 {[%emt 0:01:40]} Kf7 {[%emt 0:02:19]} 34. h5 {[%emt 0:21:23]} a5 {[%emt 0:02:53]} 35. bxa5 {[%emt 0:02:32]} Ra6 {[%emt 0:00:17]} 36. h6 {[%emt 0:04:19]} Rxa5 {[%emt 0:00:51]} 37. Be6+ {[%emt 0:08:45]} Rxe6 {[%emt 0:00:17]} 38. Rxe6 {[%emt 0:00:01]} Kxe6 {[%emt 0:00:36]} 39. Rxe8+ {[%emt 0:00:01]} Kf6 {[%emt 0:00:18]} 40. g4 {[%emt 0:00:00]} Ra7 {[%emt 0:00:00]} 41. Rb8 {[%emt 0:06:37]} Ra3+ {[%emt 0:09:54]} 42. Kxe4 {[%emt 0:00:05]} Ra4+ {[%emt 0:00:04]} 43. Kf3 {[%emt 0:00:04]} Ra3+ {[%emt 0:00:04]} 44. Kg2 {[%emt 0:00:03]} Ra2+ {[%emt 0:00:05]} 45. Kg3 {[%emt 0:00:02]} Ra3+ {[%emt 0:00:06]} 46. Kh4 {[%emt 0:00:05]} Ra4 {[%emt 0:00:03]} 47. Rb6+ {[%emt 0:00:12]} Kf7 {[%emt 0:00:18]} 48. Kg5 {[%emt 0:00:32]} Ra8 {[%emt 0:06:15]} 49. Rb7+ {[%emt 0:01:25]} Kg8 {[%emt 0:00:19]} 50. f5 {[%emt 0:01:45]} gxf5 {[%emt 0:00:09]} 51. gxf5 {[%emt 0:00:01]} b4 {[%emt 0:03:57]} 52. Rxb4 {[%emt 0:00:21]} Kf7 {[%emt 0:06:24]} 53. Rb7+ {[%emt 0:00:05]} Kg8 {[%emt 0:00:03]} 54. Kf6 {[%emt 0:02:41]} Rf8+ {[%emt 0:00:24]} 55. Ke6 {[%emt 0:00:01]} Re8+ {[%emt 0:00:11]} 56. Re7 {[%emt 0:00:06]} Ra8 {[%emt 0:00:11]} 57. Rg7+ {[%emt 0:00:24]} Kh8 58. Rd7 {[%emt 0:03:38]} Kg8 {[%emt 0:00:46]} 59. f6 {[%emt 0:04:43]} Re8+ {[%emt 0:01:32]} 60. Kf5 {[%emt 0:00:21]} Ra8 {[%emt 0:00:27]} 61. Rg7+ {[%emt 0:01:52]} Kh8 62. Re7 Kg8 {[%emt 0:00:41]} 63. Rc7 {[%emt 0:00:34]} Rb8 {[%emt 0:01:00]} 64. Ke6 {[%emt 0:00:15]} Re8+ {[%emt 0:00:14]} 65. Re7 {[%emt 0:00:14]} Ra8 {[%emt 0:00:08]} 66. Rd7 {[%emt 0:00:25]} Re8+ {[%emt 0:00:12]} 67. Kd6 {[%emt 0:00:01]} Rf8 {[%emt 0:00:49]} 68. Ke5 {[%emt 0:07:13]} Re8+ {[%emt 0:00:39]} 69. Kf5 {[%emt 0:00:01]} Ra8 {[%emt 0:00:12]} 70. Rb7 {[%emt 0:00:16]} Rc8 {[%emt 0:00:36]} 71. Ra7 {[%emt 0:00:21]} Rb8 {[%emt 0:00:13]} 72. Re7 {[%emt 0:04:12]} Rb5+ {[%emt 0:00:50]} 73. Ke4 {[%emt 0:00:02]} Rb4+ {[%emt 0:01:17]} 74. Kd5 {[%emt 0:00:05]} Rb5+ {[%emt 0:00:51]} 75. Kc6 {[%emt 0:00:02]} Rf5 {[%emt 0:00:43]} 1/2-1/2

[Event "VII Sunway Sitges Open 2020"]
[Site "Sitges"]
[Date "2020.12.14"]
[Round "2.22"]
[White "Niemann, Hans Moke"]
[Black "Dalaud, Dorian"]
[Result "1-0"]
[ECO "D37"]
[WhiteElo "2472"]
[BlackElo "2291"]
[Annotator "RC"]
[PlyCount "119"]
[EventDate "2020.12.13"]
[EventType "swiss"]
[EventCountry "ESP"]
[SourceTitle "playchess.com"]
[Source "ChessBase"]
[SourceQuality "1"]
[TimeControl "40/5400+30:1800+30"]

1. Nf3 {[%emt 0:00:03]} d5 {[%emt 0:00:24]} 2. d4 Nf6 {[%emt 0:00:06]} 3. c4 {[%emt 0:02:31]} e6 {[%emt 0:00:19]} 4. Nc3 {[%emt 0:01:29]} dxc4 {[%emt 0:00:19]} 5. g3 Be7 {[%emt 0:11:58]} 6. Bg2 {[%emt 0:08:24]} O-O {[%emt 0:00:10]} 7. Ne5 {[%emt 0:01:37]} Nc6 {[%emt 0:09:27]} 8. Bxc6 {[%emt 0:00:17]} bxc6 {[%emt 0:00:05]} 9. Nxc6 {[%emt 0:00:05]} Qe8 {[%emt 0:00:33]} 10. Nxe7+ {[%emt 0:00:09]} Qxe7 {[%emt 0:00:05]} 11. Qa4 {[%emt 0:00:06]} Bb7 {[%emt 0:09:47]} 12. f3 c5 {[%emt 0:11:56]} 13. Qa3 {[%emt 0:02:26]} Nd5 {[%emt 0:11:09]} 14. Qxc5 {[%emt 0:01:36]} Qxc5 {[%emt 0:02:51]} 15. dxc5 {[%emt 0:00:07]} Nb4 {[%emt 0:00:20]} 16. Kf2 {[%emt 0:03:01]} Rfc8 {[%emt 0:02:28]} 17. Be3 Nc2 {[%emt 0:04:18]} 18. Rad1 {[%emt 0:03:26]} Nxe3 {[%emt 0:00:03]} 19. Kxe3 {[%emt 0:00:10]} Rxc5 {[%emt 0:00:02]} 20. Rd7 {[%emt 0:00:08]} Rb8 {[%emt 0:00:08]} 21. Rhd1 {[%emt 0:00:06]} Kf8 {[%emt 0:02:55]} 22. Rd8+ {[%emt 0:01:58]} Rxd8 {[%emt 0:00:09]} 23. Rxd8+ {[%emt 0:00:05]} Ke7 {[%emt 0:00:04]} 24. Rb8 {[%emt 0:00:08]} Ba6 {[%emt 0:06:01]} 25. Kd4 {[%emt 0:00:34]} Ra5 {[%emt 0:05:47]} 26. f4 {[%emt 0:05:28]} Kf6 {[%emt 0:09:34]} 27. e4 {[%emt 0:00:31]} Kg6 {[%emt 0:02:30]} 28. h3 {[%emt 0:01:06]} h5 29. g4 {[%emt 0:02:14]} hxg4 {[%emt 0:01:53]} 30. hxg4 {[%emt 0:00:03]} f6 {[%emt 0:00:06]} 31. e5 {[%emt 0:03:20]} fxe5+ {[%emt 0:02:29]} 32. fxe5 {[%emt 0:00:04]} Kg5 {[%emt 0:00:04]} 33. Rg8 {[%emt 0:01:10]} Kg6 {[%emt 0:02:20]} 34. Re8 {[%emt 0:00:13]} Kf7 {[%emt 0:00:09]} 35. Rb8 {[%emt 0:00:05]} Kg6 {[%emt 0:00:55]} 36. a3 {[%emt 0:00:06]} Kf7 {[%emt 0:02:31]} 37. g5 {[%emt 0:07:03]} Kg6 {[%emt 0:00:12]} 38. Re8 Kf7 {[%emt 0:00:56]} 39. Rd8 {[%emt 0:00:12]} Ke7 {[%emt 0:01:56]} 40. Ra8 {[%emt 0:00:00]} Bb7 {[%emt 0:00:00]} 41. Rb8 Bf3 {[%emt 0:10:36]} 42. g6 {[%emt 0:00:42]} Bh5 {[%emt 0:00:02]} 43. Rg8 {[%emt 0:00:19]} Bxg6 {[%emt 0:00:01]} 44. Rxg7+ {[%emt 0:00:05]} Bf7 {[%emt 0:00:07]} 45. Rg5 {[%emt 0:00:05]} Kd7 {[%emt 0:00:20]} 46. Kxc4 {[%emt 0:00:19]} Kc6 {[%emt 0:00:24]} 47. a4 {[%emt 0:00:10]} Rc5+ {[%emt 0:00:35]} 48. Kd4 {[%emt 0:00:02]} Kb6 {[%emt 0:02:29]} 49. Rg7 {[%emt 0:00:05]} Bh5 {[%emt 0:00:39]} 50. Rb7+ Kxb7 {[%emt 0:04:49]} 51. Kxc5 {[%emt 0:00:06]} Bg4 {[%emt 0:02:41]} 52. b4 {[%emt 0:00:11]} a6 {[%emt 0:00:55]} 53. a5 {[%emt 0:00:41]} Kc7 {[%emt 0:01:24]} 54. Ne4 {[%emt 0:05:20]} Bd1 {[%emt 0:02:08]} 55. Nd6 {[%emt 0:00:17]} Ba4 56. b5 {[%emt 0:00:12]} axb5 {[%emt 0:01:29]} 57. a6 {[%emt 0:00:00]} Bd1 {[%emt 0:02:51]} 58. Nxb5+ Kd7 {[%emt 0:09:38]} 59. Kb6 {[%emt 0:00:11]} Ke7 {[%emt 0:00:37]} 60. Nd4 {[%emt 0:00:05]} 1-0

[Event "VII Sunway Sitges Open 2020"]
[Site "Sitges"]
[Date "2020.12.14"]
[Round "2.23"]
[White "Peycheva, Gergana"]
[Black "Asis Gargatagli, Hipolito"]
[Result "1/2-1/2"]
[ECO "A41"]
[WhiteElo "2257"]
[BlackElo "2470"]
[Annotator "RC"]
[PlyCount "67"]
[EventDate "2020.12.13"]
[EventType "swiss"]
[EventCountry "ESP"]
[SourceTitle "playchess.com"]
[Source "ChessBase"]
[SourceQuality "1"]
[TimeControl "40/5400+30:1800+30"]

1. d4 {[%emt 0:00:00]} d6 {[%emt 0:00:00]} 2. c4 {[%emt 0:00:21]} f5 {[%emt 0:00:11]} 3. Nc3 {[%emt 0:00:51]} Nf6 {[%emt 0:00:28]} 4. Bg5 {[%emt 0:02:16]} Nbd7 {[%emt 0:01:15]} 5. Qc2 {[%emt 0:00:32]} e6 {[%emt 0:06:54]} 6. e4 {[%emt 0:10:05]} fxe4 {[%emt 0:00:31]} 7. Nxe4 {[%emt 0:00:44]} Be7 {[%emt 0:00:57]} 8. Bd3 {[%emt 0:04:41]} Nxe4 {[%emt 0:10:44]} 9. Bxe7 {[%emt 0:00:05]} Qxe7 {[%emt 0:00:14]} 10. Bxe4 {[%emt 0:00:04]} Nf6 {[%emt 0:00:37]} 11. Bd3 {[%emt 0:03:16]} e5 {[%emt 0:05:46]} 12. dxe5 {[%emt 0:10:44]} dxe5 {[%emt 0:02:39]} 13. f3 {[%emt 0:08:21]} Be6 {[%emt 0:18:02]} 14. O-O-O {[%emt 0:03:24]} O-O-O {[%emt 0:07:10]} 15. Ne2 {[%emt 0:02:56]} Qc5 {[%emt 0:03:53]} 16. Bf5 {[%emt 0:11:35]} Bxf5 {[%emt 0:01:13]} 17. Qxf5+ {[%emt 0:00:04]} Kb8 {[%emt 0:00:11]} 18. Nc3 {[%emt 0:02:14]} a6 {[%emt 0:08:27]} 19. Rhe1 {[%emt 0:08:46]} Qxc4 {[%emt 0:09:59]} 20. Qxe5 {[%emt 0:03:47]} Rhe8 {[%emt 0:00:34]} 21. Qg5 {[%emt 0:04:38]} Rxe1 {[%emt 0:05:49]} 22. Rxe1 {[%emt 0:00:03]} Rd7 {[%emt 0:00:27]} 23. Rd1 {[%emt 0:05:56]} Re7 {[%emt 0:04:26]} 24. Kb1 {[%emt 0:01:15]} h6 {[%emt 0:03:48]} 25. Qg6 {[%emt 0:02:59]} Qg8 {[%emt 0:03:46]} 26. Qf5 {[%emt 0:02:06]} Qe8 {[%emt 0:00:21]} 27. a3 {[%emt 0:01:45]} Re5 {[%emt 0:01:53]} 28. Qd3 {[%emt 0:00:17]} Re1 {[%emt 0:01:02]} 29. Rxe1 {[%emt 0:00:25]} Qxe1+ {[%emt 0:00:05]} 30. Ka2 {[%emt 0:00:17]} Qe6+ {[%emt 0:00:23]} 31. Ka1 {[%emt 0:00:18]} Qe1+ {[%emt 0:00:14]} 32. Ka2 {[%emt 0:00:05]} Qe6+ {[%emt 0:00:08]} 33. Ka1 {[%emt 0:00:13]} Qe1+ 34. Qd1 1/2-1/2

[Event "VII Sunway Sitges Open 2020"]
[Site "Sitges"]
[Date "2020.12.14"]
[Round "2.24"]
[White "Sochacki, Christophe"]
[Black "Ortega Serra, Marc"]
[Result "1/2-1/2"]
[ECO "B30"]
[WhiteElo "2469"]
[BlackElo "2288"]
[Annotator "RC"]
[PlyCount "60"]
[EventDate "2020.12.13"]
[EventType "swiss"]
[EventCountry "ESP"]
[SourceTitle "playchess.com"]
[Source "ChessBase"]
[SourceQuality "1"]
[TimeControl "40/5400+30:1800+30"]

1. e4 {[%emt 0:00:00]} c5 {[%emt 0:00:00]} 2. Nf3 {[%emt 0:00:00]} Nc6 {[%emt 0:00:00]} 3. c3 {[%emt 0:02:43]} d5 {[%emt 0:00:02]} 4. exd5 {[%emt 0:00:15]} Qxd5 {[%emt 0:00:09]} 5. d4 {[%emt 0:00:06]} e5 {[%emt 0:00:34]} 6. Nxe5 {[%emt 0:05:49]} Nxe5 {[%emt 0:00:19]} 7. dxe5 {[%emt 0:00:02]} Qxe5+ {[%emt 0:00:15]} 8. Be3 {[%emt 0:00:24]} Bd7 {[%emt 0:01:07]} 9. Nd2 {[%emt 0:07:06]} Nf6 {[%emt 0:03:09]} 10. Nf3 {[%emt 0:13:08]} Qc7 {[%emt 0:01:05]} 11. Qb3 {[%emt 0:00:37]} Bd6 {[%emt 0:03:46]} 12. Bb5 {[%emt 0:04:29]} O-O {[%emt 0:01:54]} 13. Bxd7 {[%emt 0:00:11]} Qxd7 {[%emt 0:08:37]} 14. O-O {[%emt 0:09:57]} Qc7 {[%emt 0:04:59]} 15. h3 {[%emt 0:04:33]} b6 {[%emt 0:03:07]} 16. Rfe1 {[%emt 0:04:00]} Rfe8 {[%emt 0:00:38]} 17. Bg5 {[%emt 0:06:39]} Ne4 {[%emt 0:05:43]} 18. Qd5 {[%emt 0:03:06]} Nxg5 {[%emt 0:00:44]} 19. Nxg5 {[%emt 0:00:41]} Bf4 {[%emt 0:05:22]} 20. Nf3 {[%emt 0:02:52]} Rxe1+ {[%emt 0:09:27]} 21. Rxe1 {[%emt 0:00:04]} Rd8 {[%emt 0:00:10]} 22. Qe4 {[%emt 0:04:08]} g6 {[%emt 0:00:17]} 23. Qa4 {[%emt 0:07:46]} Bd6 {[%emt 0:01:51]} 24. Qe4 {[%emt 0:12:34]} c4 {[%emt 0:06:50]} 25. Qh4 {[%emt 0:01:40]} Bf8 {[%emt 0:02:37]} 26. Ng5 {[%emt 0:01:10]} h6 {[%emt 0:00:10]} 27. Nf3 {[%emt 0:01:30]} b5 {[%emt 0:02:05]} 28. Qe4 {[%emt 0:01:38]} Qd7 {[%emt 0:02:20]} 29. a4 {[%emt 0:02:07]} a6 {[%emt 0:00:12]} 30. axb5 {[%emt 0:00:17]} axb5 {[%emt 0:00:06]} 1/2-1/2

[Event "VII Sunway Sitges Open 2020"]
[Site "Sitges"]
[Date "2020.12.14"]
[Round "2.29"]
[White "Shatil, Shir"]
[Black "Batsiashvili, Nino"]
[Result "0-1"]
[ECO "E47"]
[WhiteElo "1920"]
[BlackElo "2460"]
[Annotator "RC"]
[PlyCount "89"]
[EventDate "2020.12.13"]
[EventType "swiss"]
[EventCountry "ESP"]
[SourceTitle "playchess.com"]
[Source "ChessBase"]
[SourceQuality "1"]
[TimeControl "40/5400+30:1800+30"]

1. d4 {[%emt 0:00:00]} Nf6 2. c4 {[%emt 0:00:00]} e6 {[%emt 0:00:00]} 3. Nc3 {[%emt 0:00:00]} Bb4 {[%emt 0:00:00]} 4. e3 {[%emt 0:00:00]} O-O 5. Bd3 {[%emt 0:00:00]} b6 {[%emt 0:00:37]} 6. Nge2 {[%emt 0:00:00]} Bb7 {[%emt 0:02:13]} 7. a3 {[%emt 0:02:01]} Be7 {[%emt 0:04:28]} 8. e4 {[%emt 0:02:28]} d5 {[%emt 0:01:40]} 9. e5 {[%emt 0:09:11]} Ne4 {[%emt 0:12:36]} 10. Qc2 {[%emt 0:08:24]} Nxc3 {[%emt 0:04:59]} 11. Nxc3 h6 {[%emt 0:00:06]} 12. cxd5 {[%emt 0:00:59]} exd5 {[%emt 0:01:24]} 13. Be3 {[%emt 0:04:59]} c5 {[%emt 0:03:07]} 14. Ne2 {[%emt 0:03:31]} Nc6 {[%emt 0:06:23]} 15. f4 {[%emt 0:04:01]} Rc8 {[%emt 0:03:36]} 16. Qd2 {[%emt 0:12:11]} Na5 {[%emt 0:10:47]} 17. f5 {[%emt 0:01:31]} Bh4+ {[%emt 0:02:00]} 18. g3 Bg5 {[%emt 0:00:04]} 19. Bxg5 {[%emt 0:03:04]} Qxg5 {[%emt 0:00:01]} 20. Qxg5 {[%emt 0:02:14]} hxg5 {[%emt 0:04:03]} 21. Bb5 {[%emt 0:06:56]} Bc6 {[%emt 0:00:02]} 22. Bxc6 {[%emt 0:07:07]} Nxc6 {[%emt 0:05:30]} 23. Rd1 {[%emt 0:02:11]} cxd4 {[%emt 0:00:35]} 24. O-O Rfe8 {[%emt 0:00:08]} 25. Nxd4 {[%emt 0:07:54]} Nxd4 {[%emt 0:00:30]} 26. Rxd4 {[%emt 0:00:03]} Rxe5 {[%emt 0:03:04]} 27. Rf2 Rc4 {[%emt 0:02:24]} 28. Rxc4 {[%emt 0:03:16]} dxc4 {[%emt 0:00:25]} 29. g4 {[%emt 0:06:43]} Kf8 30. Rc2 {[%emt 0:00:09]} Re4 {[%emt 0:01:46]} 31. h3 {[%emt 0:00:24]} b5 {[%emt 0:00:00]} 32. Kf2 Rd4 {[%emt 0:00:16]} 33. Re2 {[%emt 0:09:14]} Rd3 {[%emt 0:00:42]} 34. Kg2 {[%emt 0:00:41]} Rb3 {[%emt 0:00:14]} 35. Kh2 {[%emt 0:02:18]} a5 {[%emt 0:00:25]} 36. Rc2 {[%emt 0:03:46]} Ke7 {[%emt 0:00:49]} 37. a4 Kd6 {[%emt 0:00:01]} 38. axb5 {[%emt 0:01:04]} Kc5 {[%emt 0:00:27]} 39. Re2 {[%emt 0:01:07]} Kxb5 {[%emt 0:00:00]} 40. Re5+ {[%emt 0:00:00]} Kb4 {[%emt 0:00:00]} 41. Re2 {[%emt 0:00:32]} a4 {[%emt 0:00:55]} 42. Kg2 {[%emt 0:01:26]} f6 {[%emt 0:00:16]} 43. Kh2 {[%emt 0:00:09]} a3 {[%emt 0:00:04]} 44. bxa3+ Rxa3 {[%emt 0:00:07]} 45. Re7 {[%emt 0:01:27]} 0-1